fUST/lending_fUST_20250301
["ID","MTS","AMOUNT","RATE_DAILY","PERIOD"]
[354915610,1740815463823,-500.0,0.00033473,5]
[354915611,1740815463832,-500.0,0.00033473,5]
[354915612,1740815463842,-500.0,0.00033473,5]
[354915613,1740815463851,-202.18673858,0.00033473,5]
[354915614,1740815463861,-500.0,0.00033473,5]
[354915615,1740815463870,-628.55083238,0.00033473,5]
[354915616,1740815463879,-198.68961882,0.00033473,2]
[354915617,1740815463890,-500.0,0.00033473,5]
[354915618,1740815463899,-500.0,0.00033473,5]
[354915619,1740815463909,-504.34516954,0.00033473,5]
[354915620,1740815463918,-500.0,0.00033473,5]
[354915621,1740815463928,-500.0,0.00033473,5]
[354915622,1740815463937,-500.0,0.00033473,5]
[354915623,1740815463947,-500.0,0.00033473,5]
[354915624,1740815463957,-500.0,0.00033473,5]
[354915625,1740815463967,-500.0,0.00033473,2]
[354915626,1740815463976,-500.0,0.00033473,5]
[354915627,1740815463987,-503.11760674,0.00033473,5]
[354915628,1740815463997,-500.0,0.00033473,5]
[354915629,1740815464006,-500.0,0.00033473,5]
[354915630,1740815464016,-479.59262317,0.00033473,2]
[354915631,1740815464026,-500.0,0.00033473,5]
[354915632,1740815464036,-10982.15591449,0.00033597,2]
[354915633,1740815464045,-500.0,0.00033673,5]
[354915634,1740815464055,-500.0,0.00033673,5]
[354915635,1740815464065,-500.0,0.00033673,5]
[354915636,1740815464074,-491.60779993,0.00033673,5]
[354915637,1740815464083,-276.27411208,0.00033673,3]
[354915638,1740815464093,-500.0,0.00033673,5]
[354915639,1740815464103,-500.0,0.00033697,2]
[354915640,1740815464113,-500.0,0.00033697,2]
[354915641,1740815464122,-505.32427382,0.00033697,2]
[354915642,1740815464132,-500.0,0.00033697,2]
[354915643,1740815464199,-500.0,0.00033697,2]
[354915644,1740815464215,-500.0,0.00033697,2]
[354915645,1740815464225,-500.0,0.00033697,2]
[354915646,1740815464235,-500.0,0.00033697,2]
[354915647,1740815464244,-500.0,0.00033697,2]
[354915648,1740815464254,-500.0,0.00033697,2]
[354915649,1740815464263,-500.0,0.00033697,2]
[354915650,1740815464273,-460.40740218,0.00033697,2]
[354915651,1740815464282,-501.38460616,0.00033697,2]
[354915652,1740815464293,-500.0,0.00033697,2]
[354915653,1740815464304,-220.04247511,0.00033697,2]
[354915654,1740815464315,-586.15075589,0.00033697,2]
[354915655,1740815464325,-505.40828293,0.00033697,2]
[354915656,1740815464335,-284.45236407,0.00033697,2]
[354915657,1740815464344,-500.0,0.00033697,2]
[354915658,1740815464354,-500.0,0.00033697,2]
[354915659,1740815464363,-500.0,0.00033697,2]
[354915660,1740815464373,-500.0,0.00033697,2]
[354915661,1740815464383,-500.0,0.00033697,2]
[354915662,1740815464394,-500.0,0.00033697,2]
[354915663,1740815464404,-500.0,0.00033697,2]
[354915664,1740815464413,-500.0,0.00033697,2]
[354915665,1740815464423,-2239.7,0.00033697,2]
[354915666,1740815464432,-188.34246364,0.00033697,2]
[354915667,1740815464442,-576.87,0.00033697,2]
[354915668,1740815464451,-6669.64,0.00033697,2]
[354915669,1740815464460,-1096.43,0.00033697,2]
[354915670,1740815464470,-1049.36,0.00033697,2]
[354915671,1740815464479,-500.0,0.00033697,2]
[354915672,1740815464488,-500.0,0.00033697,2]
[354915673,1740815464498,-500.0,0.00033697,2]
[354915674,1740815464507,-828.58,0.00033697,2]
[354915675,1740815464516,-500.0,0.00033697,2]
[354915676,1740815464526,-694.53,0.00033697,2]
[354915677,1740815464535,-500.0,0.00033697,2]
[354915678,1740815464545,-500.0,0.00033697,2]
[354915679,1740815464554,-500.0,0.00033697,2]
[354915680,1740815464565,-500.0,0.00033697,2]
[354915681,1740815464574,-500.0,0.00033697,2]
[354915682,1740815464583,-500.0,0.00033697,2]
[354915683,1740815464593,-500.0,0.00033697,2]
[354915684,1740815464602,-500.0,0.00033697,2]
[354915685,1740815464612,-17074.4,0.00033697,2]
[354915686,1740815464621,-500.0,0.00033697,2]
[354915687,1740815464631,-1882.61,0.00033697,2]
[354915688,1740815464640,-500.0,0.00033697,2]
[354915689,1740815464650,-152.365969,0.00033697,14]
[354915690,1740815464659,-1713.27,0.00033697,2]
[354915691,1740815464668,-500.0,0.00033697,2]
[354915692,1740815464677,-2072.53,0.00033697,2]
[354915693,1740815464688,-151.0,0.00033697,14]
[354915694,1740815464697,-919.43,0.00033697,2]
[354915695,1740815464706,-545.592734,0.00033697,14]
[354915696,1740815464716,-151.0,0.00033697,14]
[354915697,1740815464725,-545.592734,0.00033697,14]
[354915698,1740815464734,-745.82,0.00033697,2]
[354915699,1740815464743,-1185.81,0.00033697,2]
[354915700,1740815464752,-500.0,0.00033697,2]
[354915701,1740815464762,-500.0,0.00033697,2]
[354915702,1740815464771,-500.0,0.00033698,2]
[354915703,1740815464780,-843.38,0.00033698,2]
[354915704,1740815464789,-1138.34,0.00033698,2]
[354915705,1740815464799,-500.0,0.00033698,2]
[354915706,1740815464808,-500.0,0.00033698,2]
[354915707,1740815464817,-500.0,0.00033698,2]
[354915708,1740815464827,-500.0,0.00033698,2]
[354915709,1740815464836,-500.0,0.00033698,2]
[354915710,1740815464845,-500.0,0.00033698,2]
[354915711,1740815464854,-500.0,0.00033698,2]
[354915712,1740815464864,-551.02,0.00033698,2]
[354915713,1740815464873,-473.46,0.00033698,2]
[354915714,1740815464883,-613.03,0.00033698,2]
[354915715,1740815464892,-500.0,0.00033698,2]
[354915716,1740815464901,-500.0,0.00033698,2]
[354915717,1740815464911,-500.0,0.00033698,2]
[354915718,1740815464920,-881.21,0.00033698,2]
[354915719,1740815464929,-500.0,0.00033698,2]
[354915720,1740815464938,-1952.71,0.00033698,2]
[354915721,1740815464947,-644.51,0.00033698,2]
[354915722,1740815464957,-500.0,0.00033698,2]
[354915723,1740815464966,-599.93081798,0.00033698,2]
[354915724,1740815464975,-500.0,0.00033698,2]
[354915725,1740815464984,-500.0,0.00033698,2]
[354915726,1740815464992,-500.0,0.00033698,2]
[354915727,1740815465002,-500.0,0.00033698,2]
[354915728,1740815465011,-612.88,0.00033698,2]
[354915729,1740815465020,-500.0,0.00033698,2]
[354915730,1740815465029,-700.73,0.00033698,2]
[354915731,1740815465038,-500.0,0.00033698,2]
[354915732,1740815465047,-500.0,0.00033698,2]
[354915733,1740815465057,-500.0,0.00033698,2]
[354915734,1740815465067,-500.0,0.00033698,2]
[354915735,1740815465076,-500.0,0.00033698,2]
[354915736,1740815465085,-500.0,0.00033698,2]
[354915737,1740815465094,-500.0,0.00033698,2]
[354915738,1740815465104,-500.0,0.00033698,2]
[354915739,1740815465113,-752.38,0.00033698,2]
[354915740,1740815465122,-1157.26,0.00033698,2]
[354915741,1740815465131,-164.321174,0.00033698,14]
[354915742,1740815465140,-500.0,0.00033698,2]
[354915743,1740815465149,-500.0,0.00033698,2]
[354915744,1740815465159,-939.0,0.00033698,2]
[354915745,1740815465168,-500.0,0.00033698,2]
[354915746,1740815465177,-686.39,0.00033698,2]
[354915747,1740815465187,-1493.85,0.00033698,2]
[354915748,1740815465197,-500.0,0.00033698,2]
[354915749,1740815465208,-1172.79,0.00033698,2]
[354915750,1740815465218,-500.0,0.00033698,2]
[354915751,1740815465227,-690.59,0.00033698,2]
[354915752,1740815465237,-571.44,0.00033698,2]
[354915753,1740815465246,-500.0,0.00033698,2]
[354915754,1740815465256,-500.0,0.00033698,2]
[354915755,1740815465265,-907.18,0.00033698,2]
[354915756,1740815465274,-500.0,0.00033698,2]
[354915757,1740815465292,-500.0,0.00033698,2]
[354915758,1740815465301,-500.0,0.00033698,2]
[354915759,1740815465311,-500.0,0.00033698,2]
[354915760,1740815465321,-500.0,0.00033698,2]
[354915761,1740815465330,-500.0,0.00033698,2]
[354915762,1740815465339,-814.74,0.00033698,2]
[354915763,1740815465348,-500.0,0.00033698,2]
[354915764,1740815465358,-500.0,0.00033698,2]
[354915765,1740815465367,-980.27,0.00033698,2]
[354915766,1740815465376,-500.0,0.00033698,2]
[354915767,1740815465385,-1212.48,0.00033698,2]
[354915768,1740815465394,-500.0,0.00033698,2]
[354915769,1740815465403,-500.0,0.00033698,2]
[354915770,1740815465412,-500.0,0.00033698,2]
[354915771,1740815465422,-500.0,0.00033698,2]
[354915772,1740815465431,-367.294875,0.00033698,14]
[354915773,1740815465441,-500.0,0.00033698,2]
[354915774,1740815465451,-367.294875,0.00033698,14]
[354915775,1740815465460,-500.0,0.00033698,2]
[354915776,1740815465471,-826.0,0.00033698,2]
[354915777,1740815465480,-748.99,0.00033698,2]
[354915778,1740815465490,-633.13,0.00033698,2]
[354915779,1740815465499,-500.0,0.00033698,2]
[354915780,1740815465508,-575.27,0.00033698,2]
[354915781,1740815465518,-500.0,0.00033698,2]
[354915782,1740815465528,-500.0,0.00033698,2]
[354915783,1740815465538,-500.0,0.00033698,2]
[354915784,1740815465547,-500.0,0.00033698,2]
[354915785,1740815465556,-296.71063,0.00033698,14]
[354915786,1740815465566,-500.0,0.00033698,2]
[354915787,1740815465575,-151.0,0.00033698,14]
[354915788,1740815465585,-500.0,0.00033698,2]
[354915789,1740815465595,-1102.33,0.00033698,2]
[354915790,1740815465604,-151.0,0.00033698,14]
[354915791,1740815465614,-530.06562148,0.00033698,2]
[354915792,1740815465624,-667.0,0.00033698,2]
[354915793,1740815465633,-500.0,0.00033698,2]
[354915794,1740815465643,-500.0,0.00033698,2]
[354915795,1740815465652,-500.0,0.00033698,2]
[354915796,1740815465662,-503.1010957,0.00033698,2]
[354915797,1740815465673,-500.0,0.00033698,2]
[354915798,1740815465682,-910.24,0.00033698,2]
[354915799,1740815465691,-1147.66,0.00033698,2]
[354915800,1740815465701,-500.0,0.00033698,2]
[354915801,1740815465711,-500.0,0.00033698,2]
[354915802,1740815465721,-500.0,0.00033698,2]
[354915803,1740815465730,-500.0,0.00033698,2]
[354915804,1740815465740,-500.0,0.00033698,2]
[354915805,1740815465750,-1583.99,0.00033698,2]
[354915806,1740815465760,-606.94,0.00033698,2]
[354915807,1740815465770,-500.0,0.00033698,2]
[354915808,1740815465779,-500.0,0.00033698,2]
[354915809,1740815465788,-3214.59,0.00033698,2]
[354915810,1740815465798,-500.0,0.00033698,2]
[354915811,1740815465807,-500.0,0.00033698,2]
[354915812,1740815465817,-1612.53,0.00033698,2]
[354915813,1740815465827,-1991.39,0.00033698,2]
[354915814,1740815465836,-500.0,0.00033698,2]
[354915815,1740815465845,-500.0,0.00033698,2]
[354915816,1740815465854,-151.0,0.00033698,14]
[354915817,1740815465864,-500.0,0.00033698,2]
[354915818,1740815465873,-1175.6,0.00033698,2]
[354915819,1740815465883,-500.0,0.00033698,2]
[354915820,1740815465892,-500.0,0.00033698,2]
[354915821,1740815465901,-500.0,0.00033698,2]
[354915822,1740815465911,-500.0,0.00033698,2]
[354915823,1740815465920,-819.63,0.00033698,2]
[354915824,1740815465929,-500.0,0.00033698,2]
[354915825,1740815465939,-518.16798955,0.00033698,2]
[354915826,1740815465948,-726.0,0.00033698,2]
[354915827,1740815465958,-500.0,0.00033698,2]
[354915828,1740815465967,-585.13,0.00033698,2]
[354915829,1740815465976,-500.0,0.00033698,2]
[354915830,1740815465987,-500.0,0.00033698,2]
[354915831,1740815465996,-1978.69,0.00033698,2]
[354915832,1740815466010,-500.0,0.00033698,2]
[354915833,1740815466021,-500.0,0.00033698,2]
[354915834,1740815466030,-500.0,0.00033698,2]
[354915835,1740815466040,-500.0,0.00033698,2]
[354915836,1740815466050,-977.09,0.00033698,2]
[354915837,1740815466060,-500.0,0.00033698,2]
[354915838,1740815466070,-500.0,0.00033698,2]
[354915839,1740815466080,-1243.42,0.00033698,2]
[354915840,1740815466090,-500.0,0.00033698,2]
[354915841,1740815466100,-500.0,0.00033698,2]
[354915842,1740815466110,-414.92681263,0.00033698,2]
[354915843,1740815466120,-500.0,0.00033698,2]
[354915844,1740815466130,-500.0,0.00033698,2]
[354915845,1740815466140,-500.0,0.00033698,2]
[354915846,1740815466149,-500.0,0.00033698,2]
[354915847,1740815466159,-500.0,0.00033698,2]
[354915848,1740815466169,-500.0,0.00033698,2]
[354915849,1740815466178,-1165.3,0.00033698,2]
[354915850,1740815466189,-500.0,0.00033698,2]
[354915851,1740815466198,-500.0,0.00033698,2]
[354915852,1740815466210,-697.43,0.00033698,2]
[354915853,1740815466220,-500.0,0.00033698,2]
[354915854,1740815466230,-629.36,0.00033698,2]
[354915855,1740815466239,-1614.06,0.00033698,2]
[354915856,1740815466250,-500.0,0.00033698,2]
[354915857,1740815466259,-500.0,0.00033698,2]
[354915858,1740815466269,-1672.62,0.00033698,2]
[354915859,1740815466278,-1168.67,0.00033698,2]
[354915860,1740815466290,-857.04,0.00033698,2]
[354915861,1740815466300,-500.0,0.00033698,2]
[354915862,1740815466310,-500.0,0.00033698,2]
[354915863,1740815466319,-278.00059302,0.00033698,2]
[354915864,1740815466329,-500.0,0.00033698,2]
[354915865,1740815466338,-500.0,0.00033698,2]
[354915866,1740815466348,-500.0,0.00033698,2]
[354915867,1740815466357,-500.0,0.00033698,2]
[354915868,1740815466367,-500.0,0.00033698,2]
[354915869,1740815466377,-500.0,0.00033698,2]
[354915870,1740815466386,-1364.59,0.00033698,2]
[354915871,1740815466396,-500.0,0.00033698,2]
[354915872,1740815466406,-500.0,0.00033698,2]
[354915873,1740815466415,-500.0,0.00033698,2]
[354915874,1740815466426,-500.0,0.00033698,2]
[354915875,1740815466435,-500.0,0.00033698,2]
[354915876,1740815466446,-1248.74,0.00033698,2]
[354915877,1740815466456,-1386.76,0.00033698,2]
[354915878,1740815466465,-500.0,0.00033698,2]
[354915879,1740815466475,-765.4,0.00033698,2]
[354915880,1740815466484,-500.0,0.00033698,2]
[354915881,1740815466494,-508.14,0.00033698,2]
[354915882,1740815466504,-500.0,0.00033698,2]
[354915883,1740815466514,-500.0,0.00033698,2]
[354915884,1740815466523,-500.0,0.00033698,2]
[354915885,1740815466533,-500.0,0.00033698,2]
[354915886,1740815466542,-500.0,0.00033698,2]
[354915887,1740815466552,-500.0,0.00033698,2]
[354915888,1740815466562,-500.0,0.00033698,2]
[354915889,1740815466571,-500.0,0.00033698,2]
[354915890,1740815466581,-708.99,0.00033698,2]
[354915891,1740815466590,-602.43,0.00033698,120]
[354915892,1740815466600,-500.0,0.00033698,2]
[354915893,1740815466610,-500.0,0.00033698,2]
[354915894,1740815466619,-500.0,0.00033698,2]
[354915895,1740815466629,-528.79,0.00033698,2]
[354915896,1740815466638,-1311.27,0.00033698,2]
[354915897,1740815466648,-505.77254598,0.00033698,2]
[354915898,1740815466657,-1531.11,0.00033698,2]
[354915899,1740815466667,-542.15,0.00033698,2]
[354915900,1740815466676,-500.0,0.00033698,2]
[354915901,1740815466686,-500.0,0.00033698,2]
[354915902,1740815466697,-2186.09,0.00033698,2]
[354915903,1740815466707,-500.0,0.00033698,2]
[354915904,1740815466716,-500.0,0.00033698,2]
[354915905,1740815466726,-500.0,0.00033698,2]
[354915906,1740815466736,-500.0,0.00033698,2]
[354915907,1740815466745,-500.0,0.00033698,2]
[354915908,1740815466755,-522.76,0.00033698,2]
[354915909,1740815466764,-500.0,0.00033698,2]
[354915910,1740815466773,-526.65,0.00033698,2]
[354915911,1740815466783,-500.0,0.00033698,2]
[354915912,1740815466792,-526.1,0.00033698,2]
[354915913,1740815466802,-500.0,0.00033698,2]
[354915914,1740815466812,-500.0,0.00033698,2]
[354915915,1740815466822,-2054.32,0.00033698,2]
[354915916,1740815466831,-380.4116414,0.00033698,2]
[354915917,1740815466841,-1980.26,0.00033698,2]
[354915918,1740815466851,-728.09,0.00033698,2]
[354915919,1740815466860,-2003.83,0.00033698,2]
[354915920,1740815466869,-500.0,0.00033698,2]
[354915921,1740815466879,-500.0,0.00033698,2]
[354915922,1740815466888,-2503.04,0.00033698,2]
[354915923,1740815466898,-1736.79,0.00033698,2]
[354915924,1740815466907,-500.0,0.00033698,2]
[354915925,1740815466917,-1167.51,0.00033698,2]
[354915926,1740815466927,-500.0,0.00033698,2]
[354915927,1740815466936,-500.0,0.00033698,2]
[354915928,1740815466945,-691.22,0.00033698,2]
[354915929,1740815466954,-500.0,0.00033698,2]
[354915930,1740815466964,-539.33,0.00033698,2]
[354915931,1740815466973,-866.32,0.00033698,2]
[354915932,1740815466982,-500.0,0.00033698,2]
[354915933,1740815466992,-1554.97,0.00033698,2]
[354915934,1740815467001,-414.67952762,0.00033698,2]
[354915935,1740815467011,-500.0,0.00033698,2]
[354915936,1740815467019,-500.0,0.00033698,2]
[354915937,1740815467028,-500.0,0.00033698,2]
[354915938,1740815467038,-185.76,0.00033698,2]
[354915939,1740815467047,-466.72,0.00033698,2]
[354915940,1740815467056,-500.0,0.00033698,2]
[354915941,1740815467066,-582.9,0.00033698,2]
[354915942,1740815467076,-559.41529134,0.00033698,2]
[354915943,1740815467085,-540.03,0.00033698,2]
[354915944,1740815467095,-500.0,0.00033698,2]
[354915945,1740815467104,-822.38,0.00033698,2]
[354915946,1740815467114,-3095.22,0.00033698,2]
[354915947,1740815467123,-500.0,0.00033698,2]
[354915948,1740815467132,-500.0,0.00033698,2]
[354915949,1740815467142,-798.81,0.00033698,2]
[354915950,1740815467151,-604.77,0.00033698,2]
[354915951,1740815467160,-3607.05,0.00033698,2]
[354915952,1740815467169,-1312.54,0.00033698,2]
[354915953,1740815467179,-503.45,0.00033698,2]
[354915954,1740815467188,-1898.36,0.00033698,2]
[354915955,1740815467197,-932.6,0.00033698,2]
[354915956,1740815467208,-500.0,0.00033698,2]
[354915957,1740815467218,-1000.0,0.00033698,2]
[354915958,1740815467227,-500.0,0.00033698,2]
[354915959,1740815467237,-513.9,0.00033698,2]
[354915960,1740815467247,-500.0,0.00033698,2]
[354915961,1740815467256,-500.0,0.00033698,2]
[354915962,1740815467265,-1322.7,0.00033698,2]
[354915963,1740815467274,-500.0,0.00033698,2]
[354915964,1740815467286,-2595.99,0.00033698,2]
[354915965,1740815467295,-500.0,0.00033698,2]
[354915966,1740815467304,-500.0,0.00033698,2]
[354915967,1740815467314,-500.0,0.00033698,2]
[354915968,1740815467323,-736.95,0.00033698,2]
[354915969,1740815467333,-500.0,0.00033698,2]
[354915970,1740815467342,-3243.23,0.00033698,2]
[354915971,1740815467352,-656.65,0.00033698,2]
[354915972,1740815467362,-1908.98,0.00033698,2]
[354915973,1740815467371,-500.0,0.00033698,2]
[354915974,1740815467380,-1470.56,0.00033698,2]
[354915975,1740815467390,-500.0,0.00033698,2]
[354915976,1740815467400,-628.5,0.00033698,2]
[354915977,1740815467409,-1186.15,0.00033698,2]
[354915978,1740815467418,-1312.34,0.00033698,2]
[354915979,1740815467428,-2004.58,0.00033698,2]
[354915980,1740815467438,-1154.89,0.00033698,2]
[354915981,1740815467447,-261249.1,0.00033698,2]
[354915982,1740815467457,-500.0,0.00033698,2]
[354915983,1740815467466,-500.0,0.00033698,2]
[354915984,1740815467476,-237.67060862,0.00033698,2]
[354915985,1740815467486,-512.33,0.00033698,2]
[354915986,1740815467496,-500.0,0.00033698,2]
[354915987,1740815467506,-500.0,0.00033698,2]
[354915988,1740815467516,-500.0,0.00033698,2]
[354915989,1740815467527,-500.0,0.00033698,2]
[354915990,1740815467536,-663.23,0.00033698,2]
[354915991,1740815467546,-1090.36,0.00033698,2]
[354915992,1740815467556,-500.0,0.00033698,2]
[354915993,1740815467565,-500.0,0.00033698,2]
[354915994,1740815467575,-4845.54,0.00033698,2]
[354915995,1740815467584,-500.0,0.00033698,2]
[354915996,1740815467594,-590.80666641,0.00033698,2]
[354915997,1740815467604,-504.28014344,0.00033698,2]
[354915998,1740815467613,-2435.05,0.00033698,2]
[354915999,1740815467624,-500.0,0.00033698,2]
[354916000,1740815467634,-500.0,0.00033698,2]
[354916001,1740815467644,-1516.27,0.00033698,2]
[354916002,1740815467653,-1229.31,0.00033698,2]
[354916003,1740815467662,-587.52,0.00033698,2]
[354916004,1740815467672,-558.19,0.00033698,2]
[354916005,1740815467681,-511.67,0.00033698,2]
[354916006,1740815467691,-14249.77,0.00033698,2]
[354916007,1740815467700,-500.0,0.00033698,2]
[354916008,1740815467709,-2604.35,0.00033698,2]
[354916009,1740815467719,-200.0,0.00033698,2]
[354916010,1740815467728,-500.0,0.00033698,2]
[354916011,1740815467737,-1885.94,0.00033698,2]
[354916012,1740815467747,-409.11509976,0.00033698,2]
[354916013,1740815467756,-724.2,0.00033698,2]
[354916014,1740815467766,-500.0,0.00033698,2]
[354916015,1740815467775,-224.60972074,0.00033698,2]
[354916016,1740815467784,-500.0,0.00033698,2]
[354916017,1740815467794,-500.0,0.00033698,2]
[354916018,1740815467803,-726.5,0.00033698,2]
[354916019,1740815467812,-890.0,0.00033698,2]
[354916020,1740815467822,-500.0,0.00033698,2]
[354916021,1740815467831,-500.0,0.00033698,2]
[354916022,1740815467841,-500.0,0.00033698,2]
[354916023,1740815467851,-500.0,0.00033698,2]
[354916024,1740815467861,-1224.42,0.00033698,5]
[354916025,1740815467870,-3474.03,0.00033698,2]
[354916026,1740815467880,-2348.01,0.00033698,2]
[354916027,1740815467890,-3298.47,0.00033698,2]
[354916028,1740815467899,-500.0,0.00033698,2]
[354916029,1740815467910,-585.94,0.00033698,2]
[354916030,1740815467919,-500.0,0.00033698,2]
[354916031,1740815467929,-1477.3,0.00033698,2]
[354916032,1740815467939,-671.97,0.00033698,2]
[354916033,1740815467948,-1119.47,0.00033698,2]
[354916034,1740815467958,-6926.06,0.00033698,2]
[354916035,1740815467968,-1543.42,0.00033698,2]
[354916036,1740815467978,-633.29,0.00033698,2]
[354916037,1740815467987,-699.24,0.00033698,2]
[354916038,1740815467997,-500.0,0.00033698,2]
[354916039,1740815468007,-500.0,0.00033698,2]
[354916040,1740815468017,-1039.78,0.00033698,2]
[354916041,1740815468027,-500.0,0.00033698,2]
[354916042,1740815468036,-500.0,0.00033698,2]
[354916043,1740815468047,-500.0,0.00033698,2]
[354916044,1740815468056,-500.0,0.00033698,2]
[354916045,1740815468066,-600.97,0.00033698,2]
[354916046,1740815468076,-1742.64,0.00033698,2]
[354916047,1740815468085,-500.0,0.00033698,2]
[354916048,1740815468095,-1170.43,0.00033698,2]
[354916049,1740815468105,-500.0,0.00033698,2]
[354916050,1740815468115,-500.0,0.00033698,2]
[354916051,1740815468126,-2046.3,0.00033698,2]
[354916052,1740815468136,-500.0,0.00033698,2]
[354916053,1740815468145,-500.0,0.00033698,2]
[354916054,1740815468155,-770.7,0.00033698,2]
[354916055,1740815468165,-300.0,0.00033698,120]
[354916056,1740815468175,-3910.34,0.00033698,2]
[354916057,1740815468184,-500.0,0.00033698,2]
[354916058,1740815468194,-500.0,0.00033698,2]
[354916059,1740815468207,-500.0,0.00033698,2]
[354916060,1740815468217,-603.91,0.00033698,2]
[354916061,1740815468227,-952.03,0.00033698,2]
[354916062,1740815468237,-500.0,0.00033698,2]
[354916063,1740815468247,-1102.29,0.00033698,2]
[354916064,1740815468256,-500.0,0.00033698,2]
[354916065,1740815468266,-500.0,0.00033698,2]
[354916066,1740815468276,-1313.88,0.00033698,2]
[354916067,1740815468287,-2162.46,0.00033698,2]
[354916068,1740815468297,-724.82,0.00033698,2]
[354916069,1740815468306,-500.0,0.00033698,2]
[354916070,1740815468317,-500.0,0.00033698,2]
[354916071,1740815468326,-951.94,0.00033698,2]
[354916072,1740815468335,-500.0,0.00033698,2]
[354916073,1740815468345,-671.76,0.00033698,2]
[354916074,1740815468354,-500.0,0.00033698,2]
[354916075,1740815468363,-500.0,0.00033698,2]
[354916076,1740815468373,-48413.75,0.00033698,2]
[354916077,1740815468382,-500.0,0.00033698,2]
[354916078,1740815468393,-500.0,0.00033698,2]
[354916079,1740815468402,-541.06,0.00033698,2]
[354916080,1740815468413,-816.92,0.00033698,2]
[354916081,1740815468424,-1559.6,0.00033698,2]
[354916082,1740815468433,-3048.67,0.00033698,2]
[354916083,1740815468443,-1057.53,0.00033698,2]
[354916084,1740815468454,-755.11,0.00033698,2]
[354916085,1740815468465,-500.0,0.00033698,2]
[354916086,1740815468475,-500.0,0.00033698,2]
[354916087,1740815468486,-500.0,0.00033698,2]
[354916088,1740815468496,-500.0,0.00033698,2]
[354916089,1740815468507,-653.6,0.00033698,2]
[354916090,1740815468517,-500.0,0.00033698,2]
[354916091,1740815468527,-500.0,0.00033698,2]
[354916092,1740815468538,-1631.72,0.00033698,2]
[354916093,1740815468548,-500.0,0.00033698,2]
[354916094,1740815468558,-515.02210196,0.00033698,2]
[354916095,1740815468572,-2584.73,0.00033698,2]
[354916096,1740815468582,-500.0,0.00033698,2]
[354916097,1740815468593,-500.0,0.00033698,2]
[354916098,1740815468603,-500.0,0.00033698,2]
[354916099,1740815468613,-500.0,0.00033971,2]
[354916100,1740815468623,-500.0,0.00033971,2]
[354916101,1740815468633,-458.64852162,0.00033971,2]
[354916102,1740815468643,-500.0,0.00033971,2]
[354916103,1740815468653,-500.0,0.00033971,2]
[354916104,1740815468663,-500.0,0.00033971,2]
[354916105,1740815468673,-536.05514205,0.00033971,2]
[354916106,1740815468683,-248.32078875,0.00033971,2]
[354916107,1740815468693,-623.5975962,0.00033971,2]
[354916108,1740815468703,-500.0,0.00033971,2]
[354916109,1740815468712,-500.0,0.00033971,2]